Workbook

Sheet Pricing model - ACS
G2: Ergon Energy Pricing Model - Price Capped Security Lighting Services
G3: 2025-30

Sheet General Inputs
B1: ='Pricing model - ACS'!G2&" - "&'Pricing model - ACS'!G3 -> Ergon Energy Pricing Model - Price Capped Security Lighting Services - 2025-30
B2: ='Pricing model - ACS'!#REF!&" - "&'Pricing model - ACS'!#REF! -> 
A5: 1 | B5: Input table 1 | General inputs
C7: Inputs | D7: Value
C8: DNSP name | D8: Ergon Energy
C9: Year ending | D9: 2000-06-01
C10: Forecast regulatory year (t) | D10: 2025–26
C11: Current regulatory year (t-1) | D11: =IF(INDEX('Lookup Tables'!I60:I61,MATCH(DNSP,'Lookup Tables'!G60:G61,0))="Vic", INDEX('Lookup Tables'!L24:L46,MATCH(forecastyear,'Lookup Tables'!I24:I46,0)-1), INDEX('Lookup Tables'!I24:I46,MATCH(forecastyear,'Lookup Tables'!I24:I46,0)-1)) -> 2024–25
C12: Current regulatory control period, first year | D12: 2025–26
C13: Current regulatory control period, last year | D13: ='Lookup Tables'!G55 -> 2029–30
B15: Input table 2 | Other inputs | D15: Source | F15: Unit | J15: 2020-21 | K15: 2021-22 | L15: 2022-23 | M15: 2023-24 | N15: 2024-25 | P15: 2025-26 | Q15: 2026-27 | R15: 2027-28 | S15: 2028-29 | T15: 2029-30 | U15: Notes
C17: Inflation | D17: 'General' | F17: Per cent | J17: =G26 -> 0.01840490798 | K17: =G27 -> 0.008605851979 | L17: =G28 -> 0.03498293515 | M17: =G29 -> 0.07831821929 | N17: =G30 -> 0.04051987768 | P17: 0.032 | Q17: 0.027 | R17: 0.02633333333 | S17: 0.02566666667 | T17: 0.025
C19: Security Lighting Services X-factor | D19: Forecast wage price escalation | F19: Per cent | K19: -0.009825264614 | L19: -0.01049345619 | M19: -0.01026224748 | N19: -0.009668180339 | P19: 0 | Q19: -0.01087009067 | R19: -0.008746627838 | S19: -0.009531573652 | T19: -0.01151592523
B21: Input table 3 | Inflation
F23: Index value | G23: Inflation | K23: Applicable regulatory year
C24: Source | F24: ABS | G24: Calculated
C25: Unit | F25: index | G25: Percent
C26: 2019-12-31 | F26: 116.2 | G26: 0.01840490798 | K26: =IF(INDEX('Lookup Tables'!$I$60:$I$61,MATCH(DNSP,'Lookup Tables'!$G$60:$G$61))="Vic",INDEX('Lookup Tables'!$L$24:$L$46,MATCH(EDATE(C26,18),'Lookup Tables'!$H$24:$H$46)),INDEX('Lookup Tables'!$I$24:$I$46,MATCH(EDATE(C26,18),'Lookup Tables'!$H$24:$H$46))) -> 2020–21 | N26: =IF(LEFT(K26,2)="HY",F26/#REF!-1,"") -> 
C27: 2020-12-31 | F27: 117.2 | G27: =F27/F26-1 -> 0.008605851979 | K27: =IF(INDEX('Lookup Tables'!$I$60:$I$61,MATCH(DNSP,'Lookup Tables'!$G$60:$G$61))="Vic",INDEX('Lookup Tables'!$L$24:$L$46,MATCH(EDATE(C27,18),'Lookup Tables'!$H$24:$H$46)),INDEX('Lookup Tables'!$I$24:$I$46,MATCH(EDATE(C27,18),'Lookup Tables'!$H$24:$H$46))) -> 2021–22
C28: 2021-12-31 | F28: 121.3 | G28: =F28/F27-1 -> 0.03498293515 | K28: =IF(INDEX('Lookup Tables'!$I$60:$I$61,MATCH(DNSP,'Lookup Tables'!$G$60:$G$61))="Vic",INDEX('Lookup Tables'!$L$24:$L$46,MATCH(EDATE(C28,18),'Lookup Tables'!$H$24:$H$46)),INDEX('Lookup Tables'!$I$24:$I$46,MATCH(EDATE(C28,18),'Lookup Tables'!$H$24:$H$46))) -> 2022–23
C29: 2022-12-31 | F29: 130.8 | G29: 0.07831821929 | K29: =IF(INDEX('Lookup Tables'!$I$60:$I$61,MATCH(DNSP,'Lookup Tables'!$G$60:$G$61))="Vic",INDEX('Lookup Tables'!$L$24:$L$46,MATCH(EDATE(C29,18),'Lookup Tables'!$H$24:$H$46)),INDEX('Lookup Tables'!$I$24:$I$46,MATCH(EDATE(C29,18),'Lookup Tables'!$H$24:$H$46))) -> 2023–24
C30: 2023-12-01 | F30: 136.1 | G30: 0.04051987768 | K30: 2024-25
C31: 2024-12-31 | F31: 139.4 | G31: 0.0242468773 | K31: =IF(INDEX('Lookup Tables'!$I$60:$I$61,MATCH(DNSP,'Lookup Tables'!$G$60:$G$61))="Vic",INDEX('Lookup Tables'!$L$24:$L$46,MATCH(EDATE(C31,18),'Lookup Tables'!$H$24:$H$46)),INDEX('Lookup Tables'!$I$24:$I$46,MATCH(EDATE(C31,18),'Lookup Tables'!$H$24:$H$46))) -> 2025–26
C32: 2025-12-31 | K32: =IF(INDEX('Lookup Tables'!$I$60:$I$61,MATCH(DNSP,'Lookup Tables'!$G$60:$G$61))="Vic",INDEX('Lookup Tables'!$L$24:$L$46,MATCH(EDATE(C32,18),'Lookup Tables'!$H$24:$H$46)),INDEX('Lookup Tables'!$I$24:$I$46,MATCH(EDATE(C32,18),'Lookup Tables'!$H$24:$H$46))) -> 2026–27
C33: 2026-12-31 | G33: =IF(MATCH(C33,$C$26:$C$47,0)<=4,"",IF(AND(C33>=IF(INDEX('Lookup Tables'!$I$60:$I$61,MATCH(DNSP,'Lookup Tables'!$G$60:$G$61,0))="Vic",(INDEX('Lookup Tables'!$K$24:$K$46,MATCH(currentyear,'Lookup Tables'!$L$24:$L$46,0))),(INDEX('Lookup Tables'!$H$24:$H$46,MATCH(currentyear,'Lookup Tables'!$I$24:$I$46,0)))),C33<='Lookup Tables'!$H$54),'General Inputs'!#REF!,IF(ISBLANK(F33),"",IF(C33>DATE('Lookup Tables'!#REF!,MONTH(#REF!),31),F33/F32-1,F33/F29-1)))) ->  | K33: =IF(INDEX('Lookup Tables'!$I$60:$I$61,MATCH(DNSP,'Lookup Tables'!$G$60:$G$61))="Vic",INDEX('Lookup Tables'!$L$24:$L$46,MATCH(EDATE(C33,18),'Lookup Tables'!$H$24:$H$46)),INDEX('Lookup Tables'!$I$24:$I$46,MATCH(EDATE(C33,18),'Lookup Tables'!$H$24:$H$46))) -> 2027–28
C34: 2027-12-31 | G34: =IF(MATCH(C34,$C$26:$C$47,0)<=4,"",IF(AND(C34>=IF(INDEX('Lookup Tables'!$I$60:$I$61,MATCH(DNSP,'Lookup Tables'!$G$60:$G$61,0))="Vic",(INDEX('Lookup Tables'!$K$24:$K$46,MATCH(currentyear,'Lookup Tables'!$L$24:$L$46,0))),(INDEX('Lookup Tables'!$H$24:$H$46,MATCH(currentyear,'Lookup Tables'!$I$24:$I$46,0)))),C34<='Lookup Tables'!$H$54),'General Inputs'!#REF!,IF(ISBLANK(F34),"",IF(C34>DATE('Lookup Tables'!#REF!,MONTH(#REF!),31),F34/F33-1,F34/F30-1)))) ->  | K34: =IF(INDEX('Lookup Tables'!$I$60:$I$61,MATCH(DNSP,'Lookup Tables'!$G$60:$G$61))="Vic",INDEX('Lookup Tables'!$L$24:$L$46,MATCH(EDATE(C34,18),'Lookup Tables'!$H$24:$H$46)),INDEX('Lookup Tables'!$I$24:$I$46,MATCH(EDATE(C34,18),'Lookup Tables'!$H$24:$H$46))) -> 2028–29
C35: 2028-12-31 | G35: =IF(MATCH(C35,$C$26:$C$47,0)<=4,"",IF(AND(C35>=IF(INDEX('Lookup Tables'!$I$60:$I$61,MATCH(DNSP,'Lookup Tables'!$G$60:$G$61,0))="Vic",(INDEX('Lookup Tables'!$K$24:$K$46,MATCH(currentyear,'Lookup Tables'!$L$24:$L$46,0))),(INDEX('Lookup Tables'!$H$24:$H$46,MATCH(currentyear,'Lookup Tables'!$I$24:$I$46,0)))),C35<='Lookup Tables'!$H$54),'General Inputs'!#REF!,IF(ISBLANK(F35),"",IF(C35>DATE('Lookup Tables'!#REF!,MONTH(#REF!),31),F35/F34-1,F35/F31-1)))) ->  | K35: =IF(INDEX('Lookup Tables'!$I$60:$I$61,MATCH(DNSP,'Lookup Tables'!$G$60:$G$61))="Vic",INDEX('Lookup Tables'!$L$24:$L$46,MATCH(EDATE(C35,18),'Lookup Tables'!$H$24:$H$46)),INDEX('Lookup Tables'!$I$24:$I$46,MATCH(EDATE(C35,18),'Lookup Tables'!$H$24:$H$46))) -> 2029–30
C36: 2029-12-31 | G36: =IF(MATCH(C36,$C$26:$C$47,0)<=4,"",IF(AND(C36>=IF(INDEX('Lookup Tables'!$I$60:$I$61,MATCH(DNSP,'Lookup Tables'!$G$60:$G$61,0))="Vic",(INDEX('Lookup Tables'!$K$24:$K$46,MATCH(currentyear,'Lookup Tables'!$L$24:$L$46,0))),(INDEX('Lookup Tables'!$H$24:$H$46,MATCH(currentyear,'Lookup Tables'!$I$24:$I$46,0)))),C36<='Lookup Tables'!$H$54),'General Inputs'!#REF!,IF(ISBLANK(F36),"",IF(C36>DATE('Lookup Tables'!#REF!,MONTH(#REF!),31),F36/F35-1,F36/F32-1)))) ->  | K36: =IF(INDEX('Lookup Tables'!$I$60:$I$61,MATCH(DNSP,'Lookup Tables'!$G$60:$G$61))="Vic",INDEX('Lookup Tables'!$L$24:$L$46,MATCH(EDATE(C36,18),'Lookup Tables'!$H$24:$H$46)),INDEX('Lookup Tables'!$I$24:$I$46,MATCH(EDATE(C36,18),'Lookup Tables'!$H$24:$H$46))) -> 2030–31
C37: 2030-12-31 | G37: =IF(MATCH(C37,$C$26:$C$47,0)<=4,"",IF(AND(C37>=IF(INDEX('Lookup Tables'!$I$60:$I$61,MATCH(DNSP,'Lookup Tables'!$G$60:$G$61,0))="Vic",(INDEX('Lookup Tables'!$K$24:$K$46,MATCH(currentyear,'Lookup Tables'!$L$24:$L$46,0))),(INDEX('Lookup Tables'!$H$24:$H$46,MATCH(currentyear,'Lookup Tables'!$I$24:$I$46,0)))),C37<='Lookup Tables'!$H$54),'General Inputs'!#REF!,IF(ISBLANK(F37),"",IF(C37>DATE('Lookup Tables'!#REF!,MONTH(#REF!),31),F37/F36-1,F37/F33-1)))) ->  | K37: =IF(INDEX('Lookup Tables'!$I$60:$I$61,MATCH(DNSP,'Lookup Tables'!$G$60:$G$61))="Vic",INDEX('Lookup Tables'!$L$24:$L$46,MATCH(EDATE(C37,18),'Lookup Tables'!$H$24:$H$46)),INDEX('Lookup Tables'!$I$24:$I$46,MATCH(EDATE(C37,18),'Lookup Tables'!$H$24:$H$46))) -> 2031–32
C38: 2031-12-31 | G38: =IF(MATCH(C38,$C$26:$C$47,0)<=4,"",IF(AND(C38>=IF(INDEX('Lookup Tables'!$I$60:$I$61,MATCH(DNSP,'Lookup Tables'!$G$60:$G$61,0))="Vic",(INDEX('Lookup Tables'!$K$24:$K$46,MATCH(currentyear,'Lookup Tables'!$L$24:$L$46,0))),(INDEX('Lookup Tables'!$H$24:$H$46,MATCH(currentyear,'Lookup Tables'!$I$24:$I$46,0)))),C38<='Lookup Tables'!$H$54),'General Inputs'!#REF!,IF(ISBLANK(F38),"",IF(C38>DATE('Lookup Tables'!#REF!,MONTH(#REF!),31),F38/F37-1,F38/F34-1)))) ->  | K38: =IF(INDEX('Lookup Tables'!$I$60:$I$61,MATCH(DNSP,'Lookup Tables'!$G$60:$G$61))="Vic",INDEX('Lookup Tables'!$L$24:$L$46,MATCH(EDATE(C38,18),'Lookup Tables'!$H$24:$H$46)),INDEX('Lookup Tables'!$I$24:$I$46,MATCH(EDATE(C38,18),'Lookup Tables'!$H$24:$H$46))) -> 2032–33
C39: 2032-12-31 | G39: =IF(MATCH(C39,$C$26:$C$47,0)<=4,"",IF(AND(C39>=IF(INDEX('Lookup Tables'!$I$60:$I$61,MATCH(DNSP,'Lookup Tables'!$G$60:$G$61,0))="Vic",(INDEX('Lookup Tables'!$K$24:$K$46,MATCH(currentyear,'Lookup Tables'!$L$24:$L$46,0))),(INDEX('Lookup Tables'!$H$24:$H$46,MATCH(currentyear,'Lookup Tables'!$I$24:$I$46,0)))),C39<='Lookup Tables'!$H$54),'General Inputs'!#REF!,IF(ISBLANK(F39),"",IF(C39>DATE('Lookup Tables'!#REF!,MONTH(#REF!),31),F39/F38-1,F39/F35-1)))) ->  | K39: =IF(INDEX('Lookup Tables'!$I$60:$I$61,MATCH(DNSP,'Lookup Tables'!$G$60:$G$61))="Vic",INDEX('Lookup Tables'!$L$24:$L$46,MATCH(EDATE(C39,18),'Lookup Tables'!$H$24:$H$46)),INDEX('Lookup Tables'!$I$24:$I$46,MATCH(EDATE(C39,18),'Lookup Tables'!$H$24:$H$46))) -> 2033–34
C40: 2033-12-31 | G40: =IF(MATCH(C40,$C$26:$C$47,0)<=4,"",IF(AND(C40>=IF(INDEX('Lookup Tables'!$I$60:$I$61,MATCH(DNSP,'Lookup Tables'!$G$60:$G$61,0))="Vic",(INDEX('Lookup Tables'!$K$24:$K$46,MATCH(currentyear,'Lookup Tables'!$L$24:$L$46,0))),(INDEX('Lookup Tables'!$H$24:$H$46,MATCH(currentyear,'Lookup Tables'!$I$24:$I$46,0)))),C40<='Lookup Tables'!$H$54),'General Inputs'!#REF!,IF(ISBLANK(F40),"",IF(C40>DATE('Lookup Tables'!#REF!,MONTH(#REF!),31),F40/F39-1,F40/F36-1)))) ->  | K40: =IF(INDEX('Lookup Tables'!$I$60:$I$61,MATCH(DNSP,'Lookup Tables'!$G$60:$G$61))="Vic",INDEX('Lookup Tables'!$L$24:$L$46,MATCH(EDATE(C40,18),'Lookup Tables'!$H$24:$H$46)),INDEX('Lookup Tables'!$I$24:$I$46,MATCH(EDATE(C40,18),'Lookup Tables'!$H$24:$H$46))) -> 2034–35
C41: 2034-12-31 | G41: =IF(MATCH(C41,$C$26:$C$47,0)<=4,"",IF(AND(C41>=IF(INDEX('Lookup Tables'!$I$60:$I$61,MATCH(DNSP,'Lookup Tables'!$G$60:$G$61,0))="Vic",(INDEX('Lookup Tables'!$K$24:$K$46,MATCH(currentyear,'Lookup Tables'!$L$24:$L$46,0))),(INDEX('Lookup Tables'!$H$24:$H$46,MATCH(currentyear,'Lookup Tables'!$I$24:$I$46,0)))),C41<='Lookup Tables'!$H$54),'General Inputs'!#REF!,IF(ISBLANK(F41),"",IF(C41>DATE('Lookup Tables'!#REF!,MONTH(#REF!),31),F41/F40-1,F41/F37-1)))) ->  | K41: =IF(INDEX('Lookup Tables'!$I$60:$I$61,MATCH(DNSP,'Lookup Tables'!$G$60:$G$61))="Vic",INDEX('Lookup Tables'!$L$24:$L$46,MATCH(EDATE(C41,18),'Lookup Tables'!$H$24:$H$46)),INDEX('Lookup Tables'!$I$24:$I$46,MATCH(EDATE(C41,18),'Lookup Tables'!$H$24:$H$46))) -> 2035–36
C42: 2035-12-31 | G42: =IF(MATCH(C42,$C$26:$C$47,0)<=4,"",IF(AND(C42>=IF(INDEX('Lookup Tables'!$I$60:$I$61,MATCH(DNSP,'Lookup Tables'!$G$60:$G$61,0))="Vic",(INDEX('Lookup Tables'!$K$24:$K$46,MATCH(currentyear,'Lookup Tables'!$L$24:$L$46,0))),(INDEX('Lookup Tables'!$H$24:$H$46,MATCH(currentyear,'Lookup Tables'!$I$24:$I$46,0)))),C42<='Lookup Tables'!$H$54),'General Inputs'!#REF!,IF(ISBLANK(F42),"",IF(C42>DATE('Lookup Tables'!#REF!,MONTH(#REF!),31),F42/F41-1,F42/F38-1)))) ->  | K42: =IF(INDEX('Lookup Tables'!$I$60:$I$61,MATCH(DNSP,'Lookup Tables'!$G$60:$G$61))="Vic",INDEX('Lookup Tables'!$L$24:$L$46,MATCH(EDATE(C42,18),'Lookup Tables'!$H$24:$H$46)),INDEX('Lookup Tables'!$I$24:$I$46,MATCH(EDATE(C42,18),'Lookup Tables'!$H$24:$H$46))) -> 2036–37
C43: 2036-12-31 | G43: =IF(MATCH(C43,$C$26:$C$47,0)<=4,"",IF(AND(C43>=IF(INDEX('Lookup Tables'!$I$60:$I$61,MATCH(DNSP,'Lookup Tables'!$G$60:$G$61,0))="Vic",(INDEX('Lookup Tables'!$K$24:$K$46,MATCH(currentyear,'Lookup Tables'!$L$24:$L$46,0))),(INDEX('Lookup Tables'!$H$24:$H$46,MATCH(currentyear,'Lookup Tables'!$I$24:$I$46,0)))),C43<='Lookup Tables'!$H$54),'General Inputs'!#REF!,IF(ISBLANK(F43),"",IF(C43>DATE('Lookup Tables'!#REF!,MONTH(#REF!),31),F43/F42-1,F43/F39-1)))) ->  | K43: =IF(INDEX('Lookup Tables'!$I$60:$I$61,MATCH(DNSP,'Lookup Tables'!$G$60:$G$61))="Vic",INDEX('Lookup Tables'!$L$24:$L$46,MATCH(EDATE(C43,18),'Lookup Tables'!$H$24:$H$46)),INDEX('Lookup Tables'!$I$24:$I$46,MATCH(EDATE(C43,18),'Lookup Tables'!$H$24:$H$46))) -> 2037–38
C44: 2037-12-31 | G44: =IF(MATCH(C44,$C$26:$C$47,0)<=4,"",IF(AND(C44>=IF(INDEX('Lookup Tables'!$I$60:$I$61,MATCH(DNSP,'Lookup Tables'!$G$60:$G$61,0))="Vic",(INDEX('Lookup Tables'!$K$24:$K$46,MATCH(currentyear,'Lookup Tables'!$L$24:$L$46,0))),(INDEX('Lookup Tables'!$H$24:$H$46,MATCH(currentyear,'Lookup Tables'!$I$24:$I$46,0)))),C44<='Lookup Tables'!$H$54),'General Inputs'!#REF!,IF(ISBLANK(F44),"",IF(C44>DATE('Lookup Tables'!#REF!,MONTH(#REF!),31),F44/F43-1,F44/F40-1)))) ->  | K44: =IF(INDEX('Lookup Tables'!$I$60:$I$61,MATCH(DNSP,'Lookup Tables'!$G$60:$G$61))="Vic",INDEX('Lookup Tables'!$L$24:$L$46,MATCH(EDATE(C44,18),'Lookup Tables'!$H$24:$H$46)),INDEX('Lookup Tables'!$I$24:$I$46,MATCH(EDATE(C44,18),'Lookup Tables'!$H$24:$H$46))) -> 2038–39
C45: 2038-12-31 | G45: =IF(MATCH(C45,$C$26:$C$47,0)<=4,"",IF(AND(C45>=IF(INDEX('Lookup Tables'!$I$60:$I$61,MATCH(DNSP,'Lookup Tables'!$G$60:$G$61,0))="Vic",(INDEX('Lookup Tables'!$K$24:$K$46,MATCH(currentyear,'Lookup Tables'!$L$24:$L$46,0))),(INDEX('Lookup Tables'!$H$24:$H$46,MATCH(currentyear,'Lookup Tables'!$I$24:$I$46,0)))),C45<='Lookup Tables'!$H$54),'General Inputs'!#REF!,IF(ISBLANK(F45),"",IF(C45>DATE('Lookup Tables'!#REF!,MONTH(#REF!),31),F45/F44-1,F45/F41-1)))) ->  | K45: =IF(INDEX('Lookup Tables'!$I$60:$I$61,MATCH(DNSP,'Lookup Tables'!$G$60:$G$61))="Vic",INDEX('Lookup Tables'!$L$24:$L$46,MATCH(EDATE(C45,18),'Lookup Tables'!$H$24:$H$46)),INDEX('Lookup Tables'!$I$24:$I$46,MATCH(EDATE(C45,18),'Lookup Tables'!$H$24:$H$46))) -> 2039–40
C46: 2039-12-31 | G46: =IF(MATCH(C46,$C$26:$C$47,0)<=4,"",IF(AND(C46>=IF(INDEX('Lookup Tables'!$I$60:$I$61,MATCH(DNSP,'Lookup Tables'!$G$60:$G$61,0))="Vic",(INDEX('Lookup Tables'!$K$24:$K$46,MATCH(currentyear,'Lookup Tables'!$L$24:$L$46,0))),(INDEX('Lookup Tables'!$H$24:$H$46,MATCH(currentyear,'Lookup Tables'!$I$24:$I$46,0)))),C46<='Lookup Tables'!$H$54),'General Inputs'!#REF!,IF(ISBLANK(F46),"",IF(C46>DATE('Lookup Tables'!#REF!,MONTH(#REF!),31),F46/F45-1,F46/F42-1)))) ->  | K46: =IF(INDEX('Lookup Tables'!$I$60:$I$61,MATCH(DNSP,'Lookup Tables'!$G$60:$G$61))="Vic",INDEX('Lookup Tables'!$L$24:$L$46,MATCH(EDATE(C46,18),'Lookup Tables'!$H$24:$H$46)),INDEX('Lookup Tables'!$I$24:$I$46,MATCH(EDATE(C46,18),'Lookup Tables'!$H$24:$H$46))) -> 2040–41
C47: 2040-12-31 | G47: =IF(MATCH(C47,$C$26:$C$47,0)<=4,"",IF(AND(C47>=IF(INDEX('Lookup Tables'!$I$60:$I$61,MATCH(DNSP,'Lookup Tables'!$G$60:$G$61,0))="Vic",(INDEX('Lookup Tables'!$K$24:$K$46,MATCH(currentyear,'Lookup Tables'!$L$24:$L$46,0))),(INDEX('Lookup Tables'!$H$24:$H$46,MATCH(currentyear,'Lookup Tables'!$I$24:$I$46,0)))),C47<='Lookup Tables'!$H$54),'General Inputs'!#REF!,IF(ISBLANK(F47),"",IF(C47>DATE('Lookup Tables'!#REF!,MONTH(#REF!),31),F47/F46-1,F47/F43-1)))) ->  | K47: =IF(INDEX('Lookup Tables'!$I$60:$I$61,MATCH(DNSP,'Lookup Tables'!$G$60:$G$61))="Vic",INDEX('Lookup Tables'!$L$24:$L$46,MATCH(EDATE(C47,18),'Lookup Tables'!$H$24:$H$46)),INDEX('Lookup Tables'!$I$24:$I$46,MATCH(EDATE(C47,18),'Lookup Tables'!$H$24:$H$46))) -> 2041–42
B49: End

Sheet ERG -Security Lighting Services
B1: ='Pricing model - ACS'!G2&" - "&'Pricing model - ACS'!G3 -> Ergon Energy Pricing Model - Price Capped Security Lighting Services - 2025-30
B2: ='Pricing model - ACS'!#REF!&" - "&'Pricing model - ACS'!#REF! -> 
I3: ALL PRICES ARE EXCLUDING GST | U3: X-FACTORS | AF3: INFLATION
I4: 2020-25 regulatory control period | O4: 2025-30 regulatory control period | U4: 2020-25 regulatory control period | Z4: 2025-30 regulatory control period | AF4: 2020-25 regulatory control period | AL4: 2025-30 regulatory control period
B5: Schedule 1 | Security Lighting Services | D5: Tariff code | E5: Unit | F5: Charge | I5: 2020-21 | J5: 2021-22 | K5: 2022-23 | L5: 2023-24 | M5: 2024-25 | O5: 2025-26 | P5: 2026-27 | Q5: 2027-28 | R5: 2028-29 | S5: 2029-30 | U5: =J5 -> 2021-22 | V5: =K5 -> 2022-23 | W5: =L5 -> 2023-24 | X5: =M5 -> 2024-25 | Z5: 2025–26 | AA5: 2026–27 | AB5: 2027–28 | AC5: 2028–29 | AD5: 2029-30 | AF5: =I5 -> 2020-21 | AG5: =J5 -> 2021-22 | AH5: 2022-23 | AI5: 2023-24 | AJ5: 2024-25 | AL5: =O5 -> 2025-26 | AM5: =P5 -> 2026-27 | AN5: 2027-28 | AO5: 2028-29 | AP5: 2029-30
I6: Actual | J6: Actual | K6: Actual | L6: Actual | M6: Forecast | O6: Forecast | P6: Forecast | Q6: Forecast | R6: Forecast | S6: Forecast | U6: Actual | V6: Actual | W6: Actual | X6: Forecast | Z6: Forecast | AA6: Forecast | AB6: Forecast | AC6: Forecast | AD6: Forecast | AF6: Actual | AG6: Actual | AH6: Actual | AI6: Actual | AJ6: Forecast | AL6: Forecast | AM6: Forecast | AN6: Forecast | AO6: Forecast | AP6: Forecast
Z7: =IF($O7="",0,'General Inputs'!K$19) -> 0 | AA7: =IF($O7="",0,'General Inputs'!L$19) -> 0 | AB7: =IF($O7="",0,'General Inputs'!M$19) -> 0 | AC7: =IF($O7="",0,'General Inputs'!N$19) -> 0 | AL7: =IF($O7="",0,'General Inputs'!U$19) -> 0 | AM7: =IF($O7="",0,'General Inputs'!V$19) -> 0 | AN7: =IF($O7="",0,'General Inputs'!W$19) -> 0 | AO7: =IF($O7="",0,'General Inputs'!X$19) -> 0
C8: Security lighting small LED (W70, W100) | D8: UWLSLED | E8: $dollars | F8: per year | I8: 307.78 | J8: 312.74 | K8: 326.25 | L8: 354.53 | M8: =ROUND(L8*(1+AJ$8)*(1-X$8),2) -> 371.59 | O8: =ROUND(M8*(1+AL$8)*(1-Z$8),2) -> 383.48 | P8: =ROUND(O8*(1+AM$8)*(1-AA$8),2) -> 398.11 | Q8: =ROUND(P8*(1+AN$8)*(1-AB$8),2) -> 412.17 | R8: 426.78 | S8: 442.49 | U8: -0.007433969882 | V8: -0.007939535508 | W8: -0.007764598886 | X8: -0.007315117126 | Z8: ='General Inputs'!P$19 -> 0 | AA8: ='General Inputs'!Q$19 -> -0.01087009067 | AB8: ='General Inputs'!R$19 -> -0.008746627838 | AC8: ='General Inputs'!S$19 -> -0.009531573652 | AD8: ='General Inputs'!T$19 -> -0.01151592523 | AF8: ='General Inputs'!J$17 -> 0.01840490798 | AG8: ='General Inputs'!K17 -> 0.008605851979 | AH8: ='General Inputs'!L17 -> 0.03498293515 | AI8: ='General Inputs'!M17 -> 0.07831821929 | AJ8: ='General Inputs'!$G$30 -> 0.04051987768 | AL8: ='General Inputs'!P$17 -> 0.032 | AM8: ='General Inputs'!Q$17 -> 0.027 | AN8: ='General Inputs'!R$17 -> 0.02633333333 | AO8: ='General Inputs'!S$17 -> 0.02566666667 | AP8: ='General Inputs'!T$17 -> 0.025
C9: Security lighting LED (W200) | D9: UWLMLED | E9: $dollars | F9: per year | I9: 365.78 | J9: 371.67 | K9: 387.73 | L9: 421.34 | M9: =ROUND(L9*(1+AJ$8)*(1-X$8),2) -> 441.62 | O9: =ROUND(M9*(1+AL$8)*(1-Z$8),2) -> 455.75 | P9: =ROUND(O9*(1+AM$8)*(1-AA$8),2) -> 473.14 | Q9: =ROUND(P9*(1+AN$8)*(1-AB$8),2) -> 489.85 | R9: =ROUND(Q9*(1+AO$8)*(1-AC$8),2) -> 507.21 | S9: =ROUND(R9*(1+AP$8)*(1-AD$8),2) -> 525.88 | U9: -0.007433969882 | V9: -0.007939535508 | W9: -0.007764598886 | X9: -0.007315117126 | Z9: ='General Inputs'!P$19 -> 0 | AA9: ='General Inputs'!Q$19 -> -0.01087009067 | AB9: ='General Inputs'!R$19 -> -0.008746627838 | AC9: ='General Inputs'!S$19 -> -0.009531573652 | AD9: ='General Inputs'!T$19 -> -0.01151592523 | AF9: 0.01840490798 | AG9: 0.008605851979 | AH9: 0.03498293515 | AI9: 0.07831821929 | AJ9: ='General Inputs'!$G$30 -> 0.04051987768 | AL9: ='General Inputs'!P$17 -> 0.032 | AM9: ='General Inputs'!Q$17 -> 0.027 | AN9: ='General Inputs'!R$17 -> 0.02633333333 | AO9: ='General Inputs'!S$17 -> 0.02566666667 | AP9: ='General Inputs'!T$17 -> 0.025
C10: Security lighting small conventional (W150) | D10: UWLSCON | E10: $dollars | F10: per year | I10: 392.12 | J10: 398.43 | K10: 415.64 | L10: 451.67 | M10: 473.41 | O10: 488.56 | P10: 507.21 | Q10: 525.12 | R10: 543.73 | S10: 563.74 | U10: -0.007433969882 | V10: -0.007939535508 | W10: -0.007764598886 | X10: -0.007315117126 | Z10: ='General Inputs'!P$19 -> 0 | AA10: ='General Inputs'!Q$19 -> -0.01087009067 | AB10: ='General Inputs'!R$19 -> -0.008746627838 | AC10: ='General Inputs'!S$19 -> -0.009531573652 | AD10: ='General Inputs'!T$19 -> -0.01151592523 | AF10: 0.01840490798 | AG10: 0.008605851979 | AH10: 0.03498293515 | AI10: 0.07831821929 | AJ10: ='General Inputs'!$G$30 -> 0.04051987768 | AL10: ='General Inputs'!P$17 -> 0.032 | AM10: ='General Inputs'!Q$17 -> 0.027 | AN10: ='General Inputs'!R$17 -> 0.02633333333 | AO10: ='General Inputs'!S$17 -> 0.02566666667 | AP10: ='General Inputs'!T$17 -> 0.025
C11: Security lighting medium conventional (W250) | D11: UWLMCON | E11: $dollars | F11: per year | I11: 404.38 | J11: 410.89 | K11: 428.64 | L11: 465.8 | M11: 488.22 | O11: 503.84 | P11: 523.07 | Q11: 541.54 | R11: 560.73 | S11: 581.37 | U11: -0.007433969882 | V11: -0.007939535508 | W11: -0.007764598886 | X11: -0.007315117126 | Z11: ='General Inputs'!P$19 -> 0 | AA11: ='General Inputs'!Q$19 -> -0.01087009067 | AB11: ='General Inputs'!R$19 -> -0.008746627838 | AC11: ='General Inputs'!S$19 -> -0.009531573652 | AD11: ='General Inputs'!T$19 -> -0.01151592523 | AF11: 0.01840490798 | AG11: 0.008605851979 | AH11: 0.03498293515 | AI11: 0.07831821929 | AJ11: ='General Inputs'!$G$30 -> 0.04051987768 | AL11: ='General Inputs'!P$17 -> 0.032 | AM11: ='General Inputs'!Q$17 -> 0.027 | AN11: ='General Inputs'!R$17 -> 0.02633333333 | AO11: ='General Inputs'!S$17 -> 0.02566666667 | AP11: ='General Inputs'!T$17 -> 0.025
C12: Security lighting large conventional (W400) | D12: UWLLCON | E12: $dollars | F12: per year | I12: 407.37 | J12: 413.93 | K12: 431.81 | L12: 469.24 | M12: 491.83 | O12: 507.57 | P12: 526.94 | Q12: 545.55 | R12: 564.89 | S12: 585.68 | U12: -0.007433969882 | V12: -0.007939535508 | W12: -0.007764598886 | X12: -0.007315117126 | Z12: ='General Inputs'!P$19 -> 0 | AA12: ='General Inputs'!Q$19 -> -0.01087009067 | AB12: ='General Inputs'!R$19 -> -0.008746627838 | AC12: ='General Inputs'!S$19 -> -0.009531573652 | AD12: ='General Inputs'!T$19 -> -0.01151592523 | AF12: 0.01840490798 | AG12: 0.008605851979 | AH12: 0.03498293515 | AI12: 0.07831821929 | AJ12: ='General Inputs'!$G$30 -> 0.04051987768 | AL12: ='General Inputs'!P$17 -> 0.032 | AM12: ='General Inputs'!Q$17 -> 0.027 | AN12: ='General Inputs'!R$17 -> 0.02633333333 | AO12: ='General Inputs'!S$17 -> 0.02566666667 | AP12: ='General Inputs'!T$17 -> 0.025
I13: =O13 -> 0 | J13: =P13 -> 0 | K13: =Q13 -> 0 | L13: =R13 -> 0 | M13: =S13 -> 0 | Z13: =IF($O13="",0,'General Inputs'!K$19) -> 0 | AA13: =IF($O13="",0,'General Inputs'!L$19) -> 0 | AB13: =IF($O13="",0,'General Inputs'!M$19) -> 0 | AC13: =IF($O13="",0,'General Inputs'!N$19) -> 0 | AL13: =IF($O13="",0,'General Inputs'!U$19) -> 0 | AM13: =IF($O13="",0,'General Inputs'!V$19) -> 0 | AN13: =IF($O13="",0,'General Inputs'!W$19) -> 0 | AO13: =IF($O13="",0,'General Inputs'!X$19) -> 0
B15: End

Sheet Lookup Tables
B1: ='Pricing model - ACS'!G2&" - "&'Pricing model - ACS'!G3 -> Ergon Energy Pricing Model - Price Capped Security Lighting Services - 2025-30 | G1: Back to Index
B2: ='Pricing model - ACS'!#REF!&" - "&'Pricing model - ACS'!#REF! -> 
B6: Unit Denominations
C8: =B6 -> Unit Denominations | G8: Ref
C9: Cents | G9: cents
C10: Dollars | G10: $dollars
C12: Percent | G12: Per cent
C13: Unit | G13: unit
C14: Number | G14: number
C15: Factor | G15: factor
C18: Actual | G18: Actual
C19: Estimate | G19: Estimate
B21: Years
C23: =B21 -> Years | G23: Calendar Year | H23: Year Ending | I23: Financial Year | K23: Yr/end Vic | L23: Reg yr Vic
C24: 2020-06-01 | G24: 2020 | H24: =DATE(G24,MONTH(yearending),1) -> 2020-06-01 | I24: =G24-1&"–"&RIGHT(G24,2) -> 2019–20 | K24: =DATE(G24,MONTH(#REF!),1) ->  | L24: =G24 -> 2020
C25: 2021-06-01 | G25: 2021 | H25: 2021-06-01 | I25: 2020–21 | K25: =H25 -> 2021-06-01 | L25: HY21
C26: 2022-06-01 | G26: 2022 | H26: 2022-06-01 | I26: 2021–22 | K26: =H26 -> 2022-06-01 | L26: =I26 -> 2021–22
C27: 2023-06-01 | G27: 2023 | H27: 2023-06-01 | I27: 2022–23 | K27: 2023-06-01 | L27: 2022–23
C28: 2024-06-01 | G28: 2024 | H28: 2024-06-01 | I28: 2023–24 | K28: 2024-06-01 | L28: 2023–24
C29: 2025-06-01 | G29: 2025 | H29: 2025-06-01 | I29: 2024–25 | K29: 2025-06-01 | L29: 2024–25
C30: 2026-06-01 | G30: 2026 | H30: 2026-06-01 | I30: 2025–26 | K30: 2026-06-01 | L30: 2025–26
C31: 2027-06-01 | G31: 2027 | H31: 2027-06-01 | I31: 2026–27 | K31: 2027-06-01 | L31: 2026–27
C32: 2028-06-01 | G32: 2028 | H32: 2028-06-01 | I32: 2027–28 | K32: 2028-06-01 | L32: 2027–28
C33: 2029-06-01 | G33: 2029 | H33: 2029-06-01 | I33: 2028–29 | K33: 2029-06-01 | L33: 2028–29
C34: 2030-06-01 | G34: 2030 | H34: 2030-06-01 | I34: 2029–30 | K34: 2030-06-01 | L34: 2029–30
C35: 2031-06-01 | G35: 2031 | H35: 2031-06-01 | I35: 2030–31 | K35: 2031-06-01 | L35: 2030–31
C36: 2032-06-01 | G36: 2032 | H36: 2032-06-01 | I36: 2031–32 | K36: 2032-06-01 | L36: 2031–32
C37: 2033-06-01 | G37: 2033 | H37: 2033-06-01 | I37: 2032–33 | K37: 2033-06-01 | L37: 2032–33
C38: 2034-06-01 | G38: 2034 | H38: 2034-06-01 | I38: 2033–34 | K38: 2034-06-01 | L38: 2033–34
C39: 2035-06-01 | G39: 2035 | H39: 2035-06-01 | I39: 2034–35 | K39: 2035-06-01 | L39: 2034–35
C40: 2036-06-01 | G40: 2036 | H40: 2036-06-01 | I40: 2035–36 | K40: 2036-06-01 | L40: 2035–36
C41: 2037-06-01 | G41: 2037 | H41: 2037-06-01 | I41: 2036–37 | K41: 2037-06-01 | L41: 2036–37
C42: 2038-06-01 | G42: 2038 | H42: 2038-06-01 | I42: 2037–38 | K42: 2038-06-01 | L42: 2037–38
C43: 2039-06-01 | G43: 2039 | H43: 2039-06-01 | I43: 2038–39 | K43: 2039-06-01 | L43: 2038–39
C44: 2040-06-01 | G44: 2040 | H44: 2040-06-01 | I44: =G44-1&"–"&RIGHT(G44,2) -> 2039–40 | K44: =H44 -> 2040-06-01 | L44: 2039–40
C45: 2041-06-01 | G45: 2041 | H45: 2041-06-01 | I45: =G45-1&"–"&RIGHT(G45,2) -> 2040–41 | K45: 2041-06-01 | L45: 2040–41
C46: 2042-06-01 | G46: 2042 | H46: 2042-06-01 | I46: =G46-1&"–"&RIGHT(G46,2) -> 2041–42 | K46: 2042-06-01 | L46: 2041–42
H47: nominal
B48: Regulatory years
C50: =B48 -> Regulatory years | G50: Year | H50: Year ending
C51: Forecast period year 1 | G51: =RCP_firstyear -> 2025–26 | H51: =INDEX($H$24:$H$46,MATCH(G51,$I$24:$I$46)) -> 2026-06-01
C52: Forecast period year 2 | G52: =INDEX('Lookup Tables'!I24:I34,MATCH(RCP_firstyear,'Lookup Tables'!I24:I34)+1) -> 2026–27 | H52: =INDEX($H$24:$H$46,MATCH(G52,$I$24:$I$46)) -> 2027-06-01
C53: Forecast period year 3 | G53: =INDEX('Lookup Tables'!I24:I34,MATCH(RCP_firstyear,'Lookup Tables'!I24:I34)+2) -> 2027–28 | H53: =INDEX($H$24:$H$46,MATCH(G53,$I$24:$I$46)) -> 2028-06-01
C54: Forecast period year 4 | G54: =INDEX('Lookup Tables'!I24:I34,MATCH(RCP_firstyear,'Lookup Tables'!I24:I34)+3) -> 2028–29 | H54: =INDEX($H$24:$H$46,MATCH(G54,$I$24:$I$46)) -> 2029-06-01
C55: Forecast period year 5 | G55: =INDEX('Lookup Tables'!I24:I34,MATCH(RCP_firstyear,'Lookup Tables'!I24:I34)+4) -> 2029–30 | H55: =INDEX($H$24:$H$46,MATCH(G55,$I$24:$I$46)) -> 2030-06-01
B57: DNSP name
C59: =B57 -> DNSP name | D59: Source
D60: AER | G60: Energex | I60: Qld
D61: AER | G61: Ergon Energy | I61: Qld
B63: End

Sheet Model update log
B2: ='Pricing model - ACS'!#REF! -> 
B3: 0
C5: Changelog (to detail completion of inputs, and any changes to inputs)
C7: Version | D7: Cell range | E7: Description
C8: v1.0 | E8: Version submitted to the AER as part of Ergon Energy's 2025-30 Regulatory Proposal
C9: v1.2
B55: End
